fUSD/lending_fUSD_20240119
["ID","MTS","AMOUNT","RATE_DAILY","PERIOD"]
[312149024,1705669862869,-1304.44,0.00022465,2]
[312149025,1705669862881,-644.49,0.00022465,2]
[312149026,1705669862892,-500.0,0.00022465,2]
[312149027,1705669862902,-4136.35,0.00022465,2]
[312149028,1705669862911,-756.21,0.00022465,2]
[312149029,1705669862921,-526.30464415,0.00022465,2]
[312149030,1705669862931,-500.0,0.00022465,2]
[312149031,1705669862941,-957.56,0.00022465,2]
[312149032,1705669862950,-1691.78,0.00022465,2]
[312149033,1705669862960,-500.0,0.00022465,2]
[312149034,1705669862969,-500.0,0.00022465,2]
[312149035,1705669862980,-500.0,0.00022465,2]
[312149036,1705669862990,-561.8,0.00022465,2]
[312149037,1705669862999,-500.0,0.00022465,2]
[312149038,1705669863009,-1210.49,0.00022465,2]
[312149039,1705669863019,-557.2,0.00022465,2]
[312149040,1705669863029,-500.0,0.00022465,2]
[312149041,1705669863041,-500.0,0.00022465,2]
[312149042,1705669863051,-1263.43,0.00022465,2]
[312149043,1705669863061,-970.19,0.00022465,2]
[312149044,1705669863071,-3690.4,0.00022465,2]
[312149045,1705669863081,-500.0,0.00022465,2]
[312149046,1705669863091,-500.0,0.00022465,2]
[312149047,1705669863101,-790.63,0.00022465,2]
[312149048,1705669863111,-500.0,0.00022465,2]
[312149049,1705669863120,-500.0,0.00022465,2]
[312149050,1705669863130,-500.0,0.00022465,2]
[312149051,1705669863140,-702.42,0.00022465,2]
[312149052,1705669863151,-3924.47,0.00022465,2]
[312149053,1705669863161,-500.0,0.00022465,2]
[312149054,1705669863171,-973.67,0.00022465,2]
[312149055,1705669863181,-598.21,0.00022465,2]
[312149056,1705669863191,-500.0,0.00022465,2]
[312149057,1705669863200,-1520.21,0.00022465,2]
[312149058,1705669863210,-562.92,0.00022465,2]
[312149059,1705669863219,-500.0,0.00022465,2]
[312149060,1705669863228,-821.93,0.00022465,2]
[312149061,1705669863237,-4002.65,0.00022465,2]
[312149062,1705669863246,-1299.47,0.00022465,2]
[312149063,1705669863256,-1988.16,0.00022465,5]
[312149064,1705669863265,-687.96,0.00022465,2]
[312149065,1705669863274,-508.47523471,0.00022465,2]
[312149066,1705669863284,-1689.55,0.00022465,2]
[312149067,1705669863293,-574.45,0.00022465,2]
[312149068,1705669863303,-500.0,0.00022465,2]
[312149069,1705669863312,-621.19,0.00022465,2]
[312149070,1705669863322,-2788.01,0.00022465,2]
[312149071,1705669863331,-500.0,0.00022465,2]
[312149072,1705669863341,-1406.79,0.00022465,2]
[312149073,1705669863351,-379.05701886,0.00022465,2]
[312149074,1705669863361,-500.0,0.00022465,2]
[312149075,1705669863370,-1676.68,0.00022465,2]
[312149076,1705669863380,-500.0,0.00022465,2]
[312149077,1705669863390,-722.53,0.00022465,2]
[312149078,1705669863400,-500.0,0.00022465,2]
[312149079,1705669863410,-528.2,0.00022465,2]
[312149080,1705669863421,-1258.05,0.00022465,2]
[312149081,1705669863431,-500.0,0.00022465,2]
[312149082,1705669863440,-536.55,0.00022465,2]
[312149083,1705669863450,-591.46,0.00022465,2]
[312149084,1705669863459,-500.0,0.00022465,2]
[312149085,1705669863470,-1526.19,0.00022465,2]
[312149086,1705669863480,-1185.94,0.00022465,2]
[312149087,1705669863489,-3581.47,0.00022465,2]
[312149088,1705669863498,-519.9206907,0.00022465,2]
[312149089,1705669863508,-500.0,0.00022465,2]
[312149090,1705669863518,-12146.1,0.00022465,2]
[312149091,1705669863528,-500.0,0.00022465,2]
[312149092,1705669863538,-2612.2,0.00022465,2]
[312149093,1705669863547,-1237.18,0.00022465,2]
[312149094,1705669863558,-858.97,0.00022465,2]
[312149095,1705669863568,-1056.03,0.00022465,2]
[312149096,1705669863578,-656.1,0.00022465,2]
[312149097,1705669863588,-2469.05,0.00022465,2]
[312149098,1705669863599,-500.0,0.00022465,2]
[312149099,1705669863609,-500.0,0.00022465,2]
[312149100,1705669863619,-9252.78,0.00022465,2]
[312149101,1705669863628,-602.84,0.00022465,2]
[312149102,1705669863638,-500.0,0.00022465,2]
[312149103,1705669863648,-15248.18,0.00022465,2]
[312149104,1705669863658,-8551.06,0.00022465,2]
[312149105,1705669863668,-2574.37,0.00022465,2]
[312149106,1705669863678,-500.0,0.00022465,2]
[312149107,1705669863688,-767.02,0.00022465,2]
[312149108,1705669863697,-577.79,0.00022465,2]
[312149109,1705669863707,-543.58,0.00022465,2]
[312149110,1705669863716,-1439.62,0.00022465,2]
[312149111,1705669863726,-1848.98,0.00022465,2]
[312149112,1705669863735,-1228.0,0.00022465,2]
[312149113,1705669863745,-2267.31,0.00022465,2]
[312149114,1705669863755,-335.59,0.00022465,2]
[312149115,1705669863765,-574.86,0.00022465,2]
[312149116,1705669863775,-3257.42,0.00022465,2]
[312149117,1705669863785,-894.19,0.00022465,2]
[312149118,1705669863797,-500.0,0.00022465,2]
[312149119,1705669863807,-585.55,0.00022465,2]
[312149120,1705669863817,-2231.87,0.00022465,2]
[312149121,1705669863827,-5684.2,0.00022465,2]
[312149122,1705669863837,-1414.02,0.00022465,2]
[312149123,1705669863848,-939.86,0.00022465,2]
[312149124,1705669863858,-500.0,0.00022465,2]
[312149125,1705669863867,-580.2,0.00022465,2]
[312149126,1705669863878,-500.0,0.00022465,2]
[312149127,1705669863888,-2102.76,0.00022465,2]
[312149128,1705669863898,-500.0,0.00022465,2]
[312149129,1705669863908,-500.0,0.00022465,2]
[312149130,1705669863917,-4658.46,0.00022465,2]
[312149131,1705669863926,-1984.44,0.00022465,2]
[312149132,1705669863936,-1931.43,0.00022465,2]
[312149133,1705669863945,-3439.18,0.00022465,2]
[312149134,1705669863955,-2207.47,0.00022465,2]
[312149135,1705669863964,-1100.23,0.00022465,2]
[312149136,1705669863974,-500.0,0.00022465,2]
[312149137,1705669863983,-500.0,0.00022465,2]
[312149138,1705669863993,-639.82,0.00022465,2]
[312149139,1705669864003,-637.52274189,0.00022465,2]
[312149140,1705669864013,-500.0,0.00022465,2]
[312149141,1705669864023,-644.68,0.00022465,2]
[312149142,1705669864034,-500.0,0.00022465,2]
[312149143,1705669864044,-500.0,0.00022465,2]
[312149144,1705669864053,-500.0,0.00022465,2]
[312149145,1705669864063,-500.0,0.00022465,2]
[312149146,1705669864073,-500.0,0.00022465,2]
[312149147,1705669864083,-759.77,0.00022465,2]
[312149148,1705669864093,-1956.81,0.00022465,2]
[312149149,1705669864103,-500.0,0.00022465,2]
[312149150,1705669864113,-986.14,0.00022465,2]
[312149151,1705669864123,-534.94,0.00022465,2]
[312149152,1705669864133,-686.98,0.00022465,2]
[312149153,1705669864143,-549.98,0.00022465,2]
[312149154,1705669864153,-916.9,0.00022465,2]
[312149155,1705669864163,-869.67,0.00022465,2]
[312149156,1705669864173,-7071.93,0.00022465,2]
[312149157,1705669864183,-2963.64,0.00022465,2]
[312149158,1705669864193,-1215.68,0.00022465,2]
[312149159,1705669864203,-1525.76,0.00022465,2]
[312149160,1705669864212,-621.36,0.00022465,2]
[312149161,1705669864222,-500.0,0.00022465,2]
[312149162,1705669864232,-500.0,0.00022465,2]
[312149163,1705669864242,-503.27345333,0.00022465,2]
[312149164,1705669864252,-2140.94,0.00022465,2]
[312149165,1705669864262,-710.71,0.00022465,2]
[312149166,1705669864272,-842.67,0.00022465,2]
[312149167,1705669864282,-549.3,0.00022465,2]
[312149168,1705669864292,-4445.96,0.00022465,2]
[312149169,1705669864302,-500.0,0.00022465,2]
[312149170,1705669864312,-4442.84,0.00022465,2]
[312149171,1705669864322,-3252.64,0.00022465,2]
[312149172,1705669864332,-9432.03,0.00022465,2]
[312149173,1705669864342,-1494.52,0.00022465,2]
[312149174,1705669864352,-500.0,0.00022465,2]
[312149175,1705669864363,-2305.27,0.00022465,2]
[312149176,1705669864373,-1994.22,0.00022465,2]
[312149177,1705669864384,-500.0,0.00022465,2]
[312149178,1705669864394,-785.42,0.00022465,2]
[312149179,1705669864405,-544.14,0.00022465,2]
[312149180,1705669864415,-15331.08,0.00022465,2]
[312149181,1705669864425,-37740.3,0.00022465,2]
[312149182,1705669864435,-500.0,0.00022465,2]
[312149183,1705669864445,-575.23,0.00022465,2]
[312149184,1705669864455,-3240.46,0.00022465,2]
[312149185,1705669864466,-500.0,0.00022465,2]
[312149186,1705669864476,-664.75,0.00022465,2]
[312149187,1705669864486,-500.0,0.00022465,2]
[312149188,1705669864496,-500.0,0.00022465,2]
[312149189,1705669864506,-500.0,0.00022465,2]
[312149190,1705669864516,-500.0,0.00022465,2]
[312149191,1705669864526,-1196.75,0.00022465,2]
[312149192,1705669864537,-500.0,0.00022465,2]
[312149193,1705669864547,-500.0,0.00022465,2]
[312149194,1705669864557,-1846.5,0.00022465,2]
[312149195,1705669864568,-665.6,0.00022465,2]
[312149196,1705669864579,-538.09,0.00022465,2]
[312149197,1705669864591,-2652.58,0.00022465,2]
[312149198,1705669864601,-2233.52,0.00022465,2]
[312149199,1705669864612,-500.0,0.00022465,2]
[312149200,1705669864623,-1124.95,0.00022465,2]
[312149201,1705669864633,-808.35,0.00022465,2]
[312149202,1705669864643,-500.0,0.00022465,2]
[312149203,1705669864653,-573.95,0.00022465,2]
[312149204,1705669864664,-3944.13,0.00022465,2]
[312149205,1705669864674,-1635.99,0.00022465,2]
[312149206,1705669864684,-750.32,0.00022465,2]
[312149207,1705669864694,-4547.59,0.00022465,2]
[312149208,1705669864704,-1281.81,0.00022465,2]
[312149209,1705669864714,-500.0,0.00022465,2]
[312149210,1705669864724,-500.0,0.00022465,2]
[312149211,1705669864734,-8425.91,0.00022465,2]
[312149212,1705669864744,-500.0,0.00022465,2]
[312149213,1705669864754,-500.0,0.00022465,2]
[312149214,1705669864765,-506.59,0.00022465,2]
[312149215,1705669864776,-754.61,0.00022465,2]
[312149216,1705669864787,-1705.42,0.00022465,2]
[312149217,1705669864802,-780.91,0.00022465,2]
[312149218,1705669864812,-591.74,0.00022465,2]
[312149219,1705669864822,-500.0,0.00022465,2]
[312149220,1705669864832,-1313.23,0.00022465,2]
[312149221,1705669864841,-574.32,0.00022465,2]
[312149222,1705669864969,-594.97419526,0.00022465,2]
[312149223,1705669864989,-500.0,0.00022465,2]
[312149224,1705669865000,-2028.69,0.00022465,2]
[312149225,1705669865010,-500.0,0.00022465,2]
[312149226,1705669865021,-633.91,0.00022465,2]
[312149227,1705669865032,-9076.22,0.00022465,2]
[312149228,1705669865042,-500.0,0.00022465,2]
[312149229,1705669865053,-924.14,0.00022465,2]
[312149230,1705669865064,-526.59,0.00022465,2]
[312149231,1705669865076,-500.0,0.00022465,2]
[312149232,1705669865087,-2029.72,0.00022465,2]
[312149233,1705669865097,-500.0,0.00022465,2]
[312149234,1705669865108,-981.27,0.00022465,2]
[312149235,1705669865119,-826.71,0.00022465,2]
[312149236,1705669865129,-1960.9,0.00022465,2]
[312149237,1705669865140,-500.0,0.00022465,2]
[312149238,1705669865150,-4783.55,0.00022465,2]
[312149239,1705669865161,-835.31,0.00022465,2]
[312149240,1705669865172,-500.0,0.00022465,2]
[312149241,1705669865183,-1577.31,0.00022465,2]
[312149242,1705669865194,-5207.41,0.00022465,2]
[312149243,1705669865205,-500.0,0.00022465,2]
[312149244,1705669865216,-500.0,0.00022465,2]
[312149245,1705669865226,-500.0,0.00022465,2]
[312149246,1705669865236,-3855.72,0.00022465,2]
[312149247,1705669865247,-544.37622064,0.00022465,2]
[312149248,1705669865257,-500.0,0.00022465,2]
[312149249,1705669865271,-685.58,0.00022465,2]
[312149250,1705669865282,-1179.28,0.00022465,2]
[312149251,1705669865293,-793.67,0.00022465,2]
[312149252,1705669865304,-813.09,0.00022465,2]
[312149253,1705669865314,-583.17,0.00022465,2]
[312149254,1705669865325,-2276.82,0.00022465,2]
[312149255,1705669865335,-3177.97,0.00022465,2]
[312149256,1705669865346,-3710.39,0.00022465,2]
[312149257,1705669865357,-500.0,0.00022465,2]
[312149258,1705669865368,-500.0,0.00022465,2]
[312149259,1705669865378,-2628.92,0.00022465,2]
[312149260,1705669865388,-660.03,0.00022465,2]
[312149261,1705669865400,-550.62,0.00022465,2]
[312149262,1705669865411,-19369.32,0.00022465,2]
[312149263,1705669865422,-638.69,0.00022465,2]
[312149264,1705669865432,-500.0,0.00022465,2]
[312149265,1705669865444,-1034.13,0.00022465,2]
[312149266,1705669865454,-2000.88,0.00022465,2]
[312149267,1705669865466,-2148.61,0.00022465,2]
[312149268,1705669865476,-500.0,0.00022465,2]
[312149269,1705669865487,-500.0,0.00022465,2]
[312149270,1705669865498,-25482.51,0.00022465,2]
[312149271,1705669865508,-1717.53,0.00022465,2]
[312149272,1705669865520,-500.0,0.00022465,2]
[312149273,1705669865531,-500.0,0.00022465,2]
[312149274,1705669865543,-1264.98,0.00022465,2]
[312149275,1705669865553,-500.0,0.00022465,2]
[312149276,1705669865564,-746.64,0.00022465,2]
[312149277,1705669865575,-500.0,0.00022465,2]
[312149278,1705669865585,-1739.34,0.00022465,2]
[312149279,1705669865596,-500.0,0.00022465,2]
[312149280,1705669865606,-1153.95,0.00022465,2]
[312149281,1705669865618,-1444.66,0.00022465,2]
[312149282,1705669865629,-4305.99,0.00022465,2]
[312149283,1705669865640,-721.93,0.00022465,2]
[312149284,1705669865651,-1568.86,0.00022465,2]
[312149285,1705669865662,-1301.31,0.00022465,2]
[312149286,1705669865672,-500.0,0.00022465,2]
[312149287,1705669865683,-1193.88,0.00022465,2]
[312149288,1705669865694,-855.93,0.00022465,2]
[312149289,1705669865705,-500.0,0.00022465,2]
[312149290,1705669865715,-1184.09,0.00022465,2]
[312149291,1705669865726,-1441.39,0.00022465,2]
[312149292,1705669865737,-2315.09,0.00022465,2]
[312149293,1705669865748,-2117.61,0.00022465,2]
[312149294,1705669865758,-980.44,0.00022465,2]
[312149295,1705669865769,-2124.5,0.00022465,2]
[312149296,1705669865781,-3846.66,0.00022465,2]
[312149297,1705669865794,-1637.31,0.00022465,2]
[312149298,1705669865805,-513.8,0.00022465,2]
[312149299,1705669865815,-757.52,0.00022465,2]
[312149300,1705669865826,-500.0,0.00022465,2]
[312149301,1705669865837,-647.07,0.00022465,2]
[312149302,1705669865848,-500.0,0.00022465,2]
[312149303,1705669865859,-883.7,0.00022465,2]
[312149304,1705669865869,-1482.25,0.00022465,2]
[312149305,1705669865881,-2977.49,0.00022465,2]
[312149306,1705669865893,-500.0,0.00022465,2]
[312149307,1705669865903,-2766.49,0.00022465,2]
[312149308,1705669865914,-1781.63,0.00022465,2]
[312149309,1705669865925,-500.0,0.00022465,2]
[312149310,1705669865936,-500.0,0.00022465,2]
[312149311,1705669865947,-661.91,0.00022465,2]
[312149312,1705669865958,-660.55,0.00022465,2]
[312149313,1705669865968,-537.32,0.00022465,2]
[312149314,1705669865980,-567.18,0.00022465,2]
[312149315,1705669865990,-500.0,0.00022465,2]
[312149316,1705669866001,-500.0,0.00022465,2]
[312149317,1705669866013,-761.41,0.00022465,2]
[312149318,1705669866024,-857.58,0.00022465,2]
[312149319,1705669866035,-1153.39,0.00022465,2]
[312149320,1705669866045,-649.92,0.00022465,2]
[312149321,1705669866056,-664.67,0.00022465,2]
[312149322,1705669866067,-323.50086168,0.00022465,2]
[312149323,1705669866078,-2418.64,0.00022465,2]
[312149324,1705669866090,-1464.05,0.00022465,2]
[312149325,1705669866102,-8804.12,0.00022465,2]
[312149326,1705669866112,-4399.62,0.00022465,2]
[312149327,1705669866122,-904.22,0.00022465,2]
[312149328,1705669866133,-500.0,0.00022465,2]
[312149329,1705669866144,-2042.08,0.00022465,2]
[312149330,1705669866154,-1340.55,0.00022465,2]
[312149331,1705669866165,-1033.87,0.00022465,2]
[312149332,1705669866175,-4233.95,0.00022465,2]
[312149333,1705669866185,-1827.3,0.00022465,2]
[312149334,1705669866196,-500.0,0.00022465,2]
[312149335,1705669866207,-760.36,0.00022465,2]
[312149336,1705669866218,-1837.39,0.00022465,2]
[312149337,1705669866229,-1378.23,0.00022465,2]
[312149338,1705669866239,-500.0,0.00022465,2]
[312149339,1705669866250,-500.0,0.00022465,2]
[312149340,1705669866260,-2761.46,0.00022465,2]
[312149341,1705669866271,-1091.57,0.00022465,2]
[312149342,1705669866283,-938.71,0.00022465,2]
[312149343,1705669866293,-1397.44,0.00022465,2]
[312149344,1705669866305,-500.0,0.00022465,2]
[312149345,1705669866315,-500.0,0.00022465,2]
[312149346,1705669866326,-1145.22,0.00022465,2]
[312149347,1705669866336,-2230.55,0.00022465,2]
[312149348,1705669866349,-2441.81,0.00022465,2]
[312149349,1705669866359,-500.0,0.00022465,2]
[312149350,1705669866369,-4496.97,0.00022465,2]
[312149351,1705669866380,-500.0,0.00022465,2]
[312149352,1705669866391,-500.0,0.00022465,2]
[312149353,1705669866402,-915.54,0.00022465,2]
[312149354,1705669866413,-1052.49,0.00022465,2]
[312149355,1705669866428,-500.0,0.00022465,2]
[312149356,1705669866439,-999.66,0.00022465,2]
[312149357,1705669866450,-1236.9,0.00022465,2]
[312149358,1705669866460,-1813.55,0.00022465,2]
[312149359,1705669866471,-7568.94,0.00022465,2]
[312149360,1705669866482,-1397.72,0.00022465,2]
[312149361,1705669866493,-715.61,0.00022465,2]
[312149362,1705669866504,-500.0,0.00022465,2]
[312149363,1705669866515,-500.0,0.00022465,2]
[312149364,1705669866525,-735.86,0.00022465,2]
[312149365,1705669866536,-500.0,0.00022465,2]
[312149366,1705669866547,-300.0,0.00022471,2]
[312149367,1705669866557,-150.0,0.00022472,2]
[312149368,1705669866568,-332.0457723,0.00022502,2]
[312149369,1705669866579,-13005.71582704,0.00022502,2]
[312149370,1705669866591,-1447.71339773,0.00022502,2]
[312149371,1705669866603,-960.47278166,0.00022502,2]
[312149372,1705669866614,-157.67,0.00022521,2]
[312149373,1705669866625,-206.0,0.0002255,2]
[312149374,1705669866637,-352.66,0.00022561,2]
[312149375,1705669866648,-151.1,0.00022575,2]
[312149376,1705669866659,-210.0,0.00022584,2]
[312149377,1705669866670,-1478.03438221,0.00022586,2]
[312149378,1705669866681,-180.0,0.00022603,2]
[312149379,1705669866693,-155.0,0.00022701,2]
[312149380,1705669866704,-150.0,0.0002273,2]
[312149381,1705669866716,-150.0,0.00022736,2]
[312149382,1705669866727,-2777.79,0.00022738,2]
[312149383,1705669866737,-500.0,0.00022739,2]
[312149384,1705669866748,-500.0,0.00022739,2]
[312149385,1705669866759,-500.0,0.00022739,2]
[312149386,1705669866770,-500.0,0.00022739,2]
[312149387,1705669866783,-500.0,0.00022739,2]
[312149388,1705669866799,-500.0,0.00022739,2]
[312149389,1705669866811,-500.0,0.00022739,2]
[312149390,1705669866823,-500.0,0.00022739,2]
[312149391,1705669866834,-1166.14,0.00022739,2]
[312149392,1705669866845,-506.24708716,0.00022739,2]
[312149393,1705669866857,-500.0,0.00022739,2]
[312149394,1705669866868,-636.19,0.00022739,2]
[312149395,1705669866879,-535.61,0.00022739,2]
[312149396,1705669866890,-500.0,0.00022739,2]
[312149397,1705669866901,-500.0,0.00022739,2]
[312149398,1705669866911,-500.0,0.00022739,2]
[312149399,1705669866922,-500.0,0.00022739,2]
[312149400,1705669866933,-881.3,0.00022739,2]
[312149401,1705669866944,-500.0,0.00022739,2]
[312149402,1705669866955,-1150.15,0.00022739,2]
[312149403,1705669866965,-500.0,0.00022739,2]
[312149404,1705669866976,-500.0,0.00022739,2]
[312149405,1705669866987,-500.0,0.00022739,2]
[312149406,1705669866998,-536.72506807,0.00022739,2]
[312149407,1705669867009,-500.0,0.00022739,2]
[312149408,1705669867020,-500.0,0.00022739,2]
[312149409,1705669867031,-500.0,0.00022739,2]
[312149410,1705669867042,-500.0,0.00022739,2]
[312149411,1705669867053,-500.0,0.00022739,2]
[312149412,1705669867064,-558.96,0.00022739,2]
[312149413,1705669867075,-767.26,0.00022739,2]
[312149414,1705669867087,-500.0,0.00022739,2]
[312149415,1705669867098,-671.71,0.00022739,2]
[312149416,1705669867109,-500.0,0.00022739,2]
[312149417,1705669867120,-500.0,0.00022739,2]
[312149418,1705669867131,-500.0,0.00022739,2]
[312149419,1705669867142,-545.37,0.00022739,2]
[312149420,1705669867153,-500.0,0.00022739,2]
[312149421,1705669867164,-698.53,0.00022739,2]
[312149422,1705669867174,-500.0,0.00022739,2]
[312149423,1705669867185,-500.0,0.00022739,2]
[312149424,1705669867197,-500.0,0.00022739,2]
[312149425,1705669867207,-790.21,0.00022739,2]
[312149426,1705669867219,-500.0,0.00022739,2]
[312149427,1705669867230,-703.41,0.00022739,2]
[312149428,1705669867242,-500.0,0.00022739,2]
[312149429,1705669867253,-500.0,0.00022739,2]
[312149430,1705669867263,-895.32,0.00022739,2]
[312149431,1705669867274,-500.0,0.00022739,2]
[312149432,1705669867285,-500.0,0.00022739,2]
[312149433,1705669867296,-571.69,0.00022739,2]
[312149434,1705669867307,-647.03,0.00022739,2]
[312149435,1705669867317,-500.0,0.00022739,2]
[312149436,1705669867328,-500.0,0.00022739,2]
[312149437,1705669867339,-1927.09,0.00022739,2]
[312149438,1705669867350,-711.44,0.00022739,2]
[312149439,1705669867666,-500.0,0.00022739,2]
[312149440,1705669867734,-739.94,0.00022739,2]
[312149441,1705669867745,-500.0,0.00022739,2]
[312149442,1705669867755,-500.0,0.00022739,2]
[312149443,1705669867766,-1124.59,0.00022739,2]
[312149444,1705669867776,-500.0,0.00022739,2]
[312149445,1705669867788,-882.8,0.00022739,2]
[312149446,1705669867800,-500.0,0.00022739,2]
[312149447,1705669867811,-664.41,0.00022739,2]
[312149448,1705669867821,-507.69,0.00022739,2]
[312149449,1705669867835,-883.64,0.00022739,2]
[312149450,1705669867846,-500.0,0.00022739,2]
[312149451,1705669867856,-1919.81,0.00022739,2]
[312149452,1705669867867,-450.98488533,0.00022739,2]
[312149453,1705669867878,-413.58031821,0.00022739,2]
[312149454,1705669867889,-500.0,0.00022739,2]
[312149455,1705669867900,-899.16,0.00022739,2]
[312149456,1705669867911,-744.37,0.00022739,2]
[312149457,1705669867921,-500.0,0.00022739,2]
[312149458,1705669867932,-500.0,0.00022739,2]
[312149459,1705669867942,-648.21,0.00022739,2]
[312149460,1705669867952,-1272.95,0.00022739,2]
[312149461,1705669867963,-902.19,0.00022739,2]
[312149462,1705669867974,-500.0,0.00022739,2]
[312149463,1705669867985,-500.0,0.00022739,2]
[312149464,1705669867995,-500.0,0.00022739,2]
[312149465,1705669868007,-1231.59,0.00022739,2]
[312149466,1705669868017,-648.29,0.00022739,2]
[312149467,1705669868028,-500.0,0.00022739,2]
[312149468,1705669868039,-500.0,0.00022739,2]
[312149469,1705669868049,-418.71270679,0.00022739,2]
[312149470,1705669868060,-500.0,0.00022739,2]
[312149471,1705669868070,-928.06,0.00022739,2]
[312149472,1705669868080,-500.0,0.00022739,2]
[312149473,1705669868091,-500.0,0.00022739,2]
[312149474,1705669868102,-1262.81,0.00022739,2]
[312149475,1705669868112,-608.03,0.00022739,2]
[312149476,1705669868122,-500.0,0.00022739,2]
[312149477,1705669868133,-500.0,0.00022739,2]
[312149478,1705669868144,-500.0,0.00022739,2]
[312149479,1705669868154,-716.12,0.00022739,2]
[312149480,1705669868165,-563.41,0.00022739,2]
[312149481,1705669868176,-500.0,0.00022739,2]
[312149482,1705669868187,-500.0,0.00022739,2]
[312149483,1705669868199,-172.90938804,0.00022739,2]
[312149484,1705669868210,-903.17,0.00022739,2]
[312149485,1705669868221,-696.7,0.00022739,2]
[312149486,1705669868232,-1064.15,0.00022739,2]
[312149487,1705669868243,-575.26,0.00022739,2]
[312149488,1705669868256,-539.33,0.00022739,2]
[312149489,1705669868267,-500.34,0.00022739,2]
[312149490,1705669868278,-542.26,0.00022739,2]
[312149491,1705669868289,-500.0,0.00022739,2]
[312149492,1705669868300,-631.74717706,0.00022739,2]
[312149493,1705669868311,-2012.98,0.00022739,2]
[312149494,1705669868321,-856.21,0.00022739,2]
[312149495,1705669868332,-684.1,0.00022739,2]
[312149496,1705669868344,-515.06,0.00022739,2]
[312149497,1705669868355,-500.0,0.00022739,2]
[312149498,1705669868366,-814.87,0.00022739,2]
[312149499,1705669868376,-500.0,0.00022739,2]
[312149500,1705669868387,-500.0,0.00022739,2]
[312149501,1705669868398,-500.0,0.00022739,2]
[312149502,1705669868409,-500.0,0.00022739,2]
[312149503,1705669868422,-718.46,0.00022739,2]
[312149504,1705669868432,-500.0,0.00022739,2]
[312149505,1705669868442,-500.0,0.00022739,2]
[312149506,1705669868453,-1408.02,0.00022739,2]
[312149507,1705669868464,-500.0,0.00022739,2]
[312149508,1705669868475,-500.0,0.00022739,2]
[312149509,1705669868485,-500.0,0.00022739,2]
[312149510,1705669868496,-500.0,0.00022739,2]
[312149511,1705669868507,-546.65,0.00022739,2]
[312149512,1705669868518,-841.35,0.00022739,2]
[312149513,1705669868528,-770.59,0.00022739,2]
[312149514,1705669868539,-733.89,0.00022739,2]
[312149515,1705669868550,-769.83,0.00022739,2]
[312149516,1705669868560,-926.17,0.00022739,2]
[312149517,1705669868571,-500.0,0.00022739,2]
[312149518,1705669868581,-680.95,0.00022739,2]
[312149519,1705669868592,-500.0,0.00022739,2]
[312149520,1705669868604,-622.1,0.00022739,2]
[312149521,1705669868614,-500.0,0.00022739,2]
[312149522,1705669868625,-500.0,0.00022739,2]
[312149523,1705669868636,-500.0,0.00022739,2]